Workbook

Sheet Indice
I8: Release 4.1 - Marzo 2017

Sheet Unità da vendere di pareggio
A2: =P.Inv.!A2 -> Ditta ABC Srl | B2: A | C2: B | D2: C | E2: Prodotto / servizio 4 | F2: Prodotto / servizio 5 | G2: Prodotto / servizio 6 | H2: Prodotto / servizio 7 | I2: Prodotto / servizio 8 | J2: Prodotto / servizio 9
A3: Prezzo | B3: 100 | C3: 50 | D3: 70 | E3: 0 | F3: 0 | G3: 0 | H3: 0 | I3: 0 | J3: 0
A4: Costi variabili unitari:
A5: Materia prima 1 | B5: 10 | C5: 30 | D5: 30 | E5: 0 | F5: 0 | G5: 0 | H5: 0 | I5: 0 | J5: 0
A6: Materia prima 2 | B6: 20 | C6: 10 | D6: 30 | E6: 0 | F6: 0 | G6: 0 | H6: 0 | I6: 0 | J6: 0
A7: Materia prima 3 | B7: 30 | C7: 0 | D7: 0 | E7: 0 | F7: 0 | G7: 0 | H7: 0 | I7: 0 | J7: 0
A8: Materia prima 4 | B8: 0 | C8: 0 | D8: 0 | E8: 0 | F8: 0 | G8: 0 | H8: 0 | I8: 0 | J8: 0
A9: Materia prima 5 | B9: 0 | C9: 0 | D9: 0 | E9: 0 | F9: 0 | G9: 0 | H9: 0 | I9: 0 | J9: 0
A10: Materia prima 6 | B10: 0 | C10: 0 | D10: 0 | E10: 0 | F10: 0 | G10: 0 | H10: 0 | I10: 0 | J10: 0
A11: Materia prima 7 | B11: 0 | C11: 0 | D11: 0 | E11: 0 | F11: 0 | G11: 0 | H11: 0 | I11: 0 | J11: 0
A12: Materia prima 8 | B12: 0 | C12: 0 | D12: 0 | E12: 0 | F12: 0 | G12: 0 | H12: 0 | I12: 0 | J12: 0
A13: Totale costi variabili unitari | B13: =SUM(B5:B12) -> 60 | C13: 40 | D13: 60 | E13: 0 | F13: 0 | G13: 0 | H13: 0 | I13: 0 | J13: 0
A14: Ricarico sul costo | B14: =IF(B3=0,0,(B3-B13)/B13) -> 0.6666666667 | C14: 0.25 | D14: 0.1666666667 | E14: 0 | F14: 0 | G14: 0 | H14: 0 | I14: 0 | J14: 0
A15: Margine di contribuzione | B15: =IF(B3=0,0,(B3-B13)/B3) -> 0.4 | C15: 0.2 | D15: 0.1428571429 | E15: 0 | F15: 0 | G15: 0 | H15: 0 | I15: 0 | J15: 0
A16: Peso | B16: 0.3 | C16: 0.5 | D16: 0.2 | E16: 0 | F16: 0 | G16: 0 | H16: 0 | I16: 0 | J16: 0
A17: Quantità di Pareggio | B17: =IF(B3<>0,(($B$40+$B$18)*B16)/(B3-B13),0) -> 2475 | C17: 16500 | D17: 6600 | E17: 0 | F17: 0 | G17: 0 | H17: 0 | I17: 0 | J17: 0
A18: Utili auspicati | B18: 0 | D18: =IF(SUM(C16:K16)/100<>100%,SUM(C16:K16),"") -> 0.7 | E18: =IF(SUM(C16:K16)<>100%,"ATTENZIONE: il totale del peso deve dare 100%. Modifica il peso di uno o più dei tuoi prodotti","") -> ATTENZIONE: il totale del peso deve dare 100%. Modifica il peso di uno o più dei tuoi prodotti
A19: Costi fissi | D19: Costi variabili | E19: Costi fissi | F19: Costi Industriali | G19: Utili auspicati + C. Industriali | H19: Utili | I19: Q | J19: Fatturato
A20: salari e stipendi | B20: 100000 | D20: =(1-$B$44)*J20 -> 0 | E20: =$B$40 -> 330000 | F20: =D20+E20 -> 330000 | G20: =$B$47+F20 -> 330000 | H20: =J20-F20 -> -330000 | I20: =$I21-$I$30/10 -> 0 | J20: =$J21-$J$30/10 -> 0
A21: fitti | B21: 30000 | D21: 120450 | E21: 330000 | F21: 450450 | G21: 450450 | H21: -297000 | I21: 2557.5 | J21: 153450
A22: assicurazioni | B22: 0 | D22: 240900 | E22: 330000 | F22: 570900 | G22: 570900 | H22: -264000 | I22: 5115 | J22: 306900
A23: consulenze | B23: 0 | D23: 361350 | E23: 330000 | F23: 691350 | G23: 691350 | H23: -231000 | I23: 7672.5 | J23: 460350
A24: energia elettrica | B24: 0 | D24: 481800 | E24: 330000 | F24: 811800 | G24: 811800 | H24: -198000 | I24: 10230 | J24: 613800
A25: spese telefoniche | B25: 0 | D25: 602250 | E25: 330000 | F25: 932250 | G25: 932250 | H25: -165000 | I25: 12787.5 | J25: 767250
A26: manutenzioni | B26: 0 | D26: 722700 | E26: 330000 | F26: 1052700 | G26: 1052700 | H26: -132000 | I26: 15345 | J26: 920700
A27: contributi previdenziali dell'imprenditore | B27: 0 | D27: 843150 | E27: 330000 | F27: 1173150 | G27: 1173150 | H27: -99000 | I27: 17902.5 | J27: 1074150
A28: autorizzazioni, licenze | B28: 0 | D28: 963600 | E28: 330000 | F28: 1293600 | G28: 1293600 | H28: -66000 | I28: 20460 | J28: 1227600
A29: quota tfr | B29: 0 | D29: 1084050 | E29: 330000 | F29: 1414050 | G29: 1414050 | H29: -33000 | I29: 23017.5 | J29: 1381050
A30: spese di vigilanza | B30: 0 | D30: =B45 -> 1204500 | E30: 330000 | F30: 1534500 | G30: 1534500 | H30: 0 | I30: =B43 -> 25575 | J30: =B42 -> 1534500
A31: altro | B31: 0 | D31: =(1-$B$44)*J31 -> 1324950 | E31: 330000 | F31: 1654950 | G31: 1654950 | H31: =J31-F31 -> 33000 | I31: =$I30+$I$30/10 -> 28132.5 | J31: =$J30+$J$30/10 -> 1687950
A32: altro | B32: 0 | D32: 1445400 | E32: 330000 | F32: 1775400 | G32: 1775400 | H32: 66000 | I32: 30690 | J32: 1841400
A33: altro | B33: 0 | D33: 1565850 | E33: 330000 | F33: 1895850 | G33: 1895850 | H33: 99000 | I33: 33247.5 | J33: 1994850
A34: altro | B34: 0 | D34: 1686300 | E34: 330000 | F34: 2016300 | G34: 2016300 | H34: 132000 | I34: 35805 | J34: 2148300
A35: altro | B35: 0 | D35: 1806750 | E35: 330000 | F35: 2136750 | G35: 2136750 | H35: 165000 | I35: 38362.5 | J35: 2301750
A36: altro | B36: 0 | D36: 1927200 | E36: 330000 | F36: 2257200 | G36: 2257200 | H36: 198000 | I36: 40920 | J36: 2455200
A37: ammortamenti (da piano degli investimenti) | B37: =P.Inv.!E124 -> 200000 | D37: 2047650 | E37: 330000 | F37: 2377650 | G37: 2377650 | H37: 231000 | I37: 43477.5 | J37: 2608650
A38: Altri ammortamenti | B38: 0 | D38: 2168100 | E38: 330000 | F38: 2498100 | G38: 2498100 | H38: 264000 | I38: =$I37+$I$30/10 -> 46035 | J38: =$J37+$J$30/10 -> 2762100
A39: altro | B39: 0 | D39: 2288550 | E39: 330000 | F39: 2618550 | G39: 2618550 | H39: 297000 | I39: 48592.5 | J39: 2915550
A40: Totale costi fissi | B40: =SUM(B20:B39) -> 330000 | D40: 2409000 | E40: 330000 | F40: 2739000 | G40: 2739000 | H40: 330000 | I40: =$I39+$I$30/10 -> 51150 | J40: 3069000
A42: Fatturato di pareggio | B42: =(B3*B17)+(C3*C17)+(D3*D17)+(E3*E17)+(F3*F17)+(H3*H17)+(I3*I17)+(J3*J17) -> 1534500
A43: Quantità di pareggio | B43: =IF(B44<>0,SUM(B17:J17),0) -> 25575
A44: Margine di contribuzione medio | B44: =IF(B42=0,0,(B42-B45)/B42) -> 0.2150537634
A45: Tot. costi variabili | B45: =(B13*B17)+(C13*C17)+(D13*D17)+(E13*E17)+(F13*F17)+(H13*H17)+(I13*I17)+(J13*J17) -> 1204500
A46: Tot. costi fissi | B46: =B40 -> 330000
A47: Utili attesi | B47: =B18 -> 0

Sheet Fatturato di pareggio
A2: =P.Inv.!A2 -> Ditta ABC Srl | B2: Prodotto / servizio 1 | C2: Prodotto / servizio 2 | D2: Prodotto / servizio 3 | E2: Prodotto / servizio 4 | F2: Prodotto / servizio 5 | G2: Prodotto / servizio 6 | H2: Prodotto / servizio 7 | I2: Prodotto / servizio 8 | J2: Prodotto / servizio 9
A3: Fatturato previsto | B3: 0 | C3: 0 | D3: 0 | E3: 0 | F3: 0 | G3: 0 | H3: 0 | I3: 0 | J3: 0
A4: Ricarico sul costo | B4: 0 | C4: 0 | D4: 0 | E4: 0 | F4: 0 | G4: 0 | H4: 0 | I4: 0 | J4: 0
A5: Margine di contribuzione | B5: =IF(B3=0,0,(B3-B6)/B3) -> 0 | C5: 0 | D5: 0 | E5: 0 | F5: 0 | G5: 0 | H5: 0 | I5: 0 | J5: 0
A6: Costi variabili totali | B6: =B3/(1+B4) -> 0 | C6: 0 | D6: 0 | E6: 0 | F6: 0 | G6: 0 | H6: 0 | I6: 0 | J6: 0
A7: Utili auspicati | B7: 0
A8: Costi fissi | D8: Costi variabili | E8: Costi fissi | F8: Costi Industriali | G8: Utili auspicati + C. Industriali | H8: Utili | I8: Fatturato
A9: salari e stipendi | B9: 0 | D9: =(1-$B$33)*I9 -> 0 | E9: =$B$35 -> 200000 | F9: =D9+E9 -> 200000 | G9: =$B$36+F9 -> 200000 | H9: =I9-F9 -> -200000 | I9: =$I10-$I$19/10 -> 0
A10: fitti | B10: 0 | D10: 0 | E10: 200000 | F10: 200000 | G10: 200000 | H10: -200000 | I10: 0
A11: assicurazioni | B11: 0 | D11: 0 | E11: 200000 | F11: 200000 | G11: 200000 | H11: -200000 | I11: 0
A12: consulenze | B12: 0 | D12: 0 | E12: 200000 | F12: 200000 | G12: 200000 | H12: -200000 | I12: 0
A13: energia elettrica | B13: 0 | D13: 0 | E13: 200000 | F13: 200000 | G13: 200000 | H13: -200000 | I13: 0
A14: spese telefoniche | B14: 0 | D14: 0 | E14: 200000 | F14: 200000 | G14: 200000 | H14: -200000 | I14: 0
A15: manutenzioni | B15: 0 | D15: 0 | E15: 200000 | F15: 200000 | G15: 200000 | H15: -200000 | I15: 0
A16: contributi previdenziali dell'imprenditore | B16: 0 | D16: 0 | E16: 200000 | F16: 200000 | G16: 200000 | H16: -200000 | I16: 0
A17: autorizzazioni, licenze | B17: 0 | D17: 0 | E17: 200000 | F17: 200000 | G17: 200000 | H17: -200000 | I17: 0
A18: quota tfr | B18: 0 | D18: 0 | E18: 200000 | F18: 200000 | G18: 200000 | H18: -200000 | I18: 0
A19: spese di vigilanza | B19: 0 | D19: 0 | E19: 200000 | F19: 200000 | G19: 200000 | H19: =I19-F19 -> -200000 | I19: =B32 -> 0
A20: altro | B20: 0 | D20: 0 | E20: 200000 | F20: 200000 | G20: 200000 | H20: =I20-F20 -> -200000 | I20: =$I19+$I$19/10 -> 0
A21: altro | B21: 0 | D21: 0 | E21: 200000 | F21: 200000 | G21: 200000 | H21: -200000 | I21: 0
A22: altro | B22: 0 | D22: 0 | E22: 200000 | F22: 200000 | G22: 200000 | H22: -200000 | I22: 0
A23: altro | B23: 0 | D23: 0 | E23: 200000 | F23: 200000 | G23: 200000 | H23: -200000 | I23: 0
A24: altro | B24: 0 | D24: 0 | E24: 200000 | F24: 200000 | G24: 200000 | H24: -200000 | I24: 0
A25: altro | B25: 0 | D25: 0 | E25: 200000 | F25: 200000 | G25: 200000 | H25: -200000 | I25: 0
A26: ammortamenti (da piano degli investimenti) | B26: =P.Inv.!E124 -> 200000 | D26: 0 | E26: 200000 | F26: 200000 | G26: 200000 | H26: -200000 | I26: 0
A27: altro | B27: 0 | D27: 0 | E27: 200000 | F27: 200000 | G27: 200000 | H27: -200000 | I27: 0
A28: altro | B28: 0 | D28: 0 | E28: 200000 | F28: 200000 | G28: 200000 | H28: -200000 | I28: 0
A29: Totale costi fissi | B29: =SUM(B9:B28) -> 200000 | D29: 0 | E29: 200000 | F29: 200000 | G29: 200000 | H29: -200000 | I29: 0
A31: Fatturato complessivo | B31: =SUM(B3:J3) -> 0
A32: Fatturato di pareggio | B32: =IF(B33<>0,(B35+B36)/B33,0) -> 0
A33: Margine di contribuzione medio | B33: =IF(B31=0,0,(B31-B34)/B31) -> 0
A34: Tot. costi variabili | B34: =SUM(B6:J6) -> 0
A35: Tot. costi fissi | B35: =B29 -> 200000
A36: Utili attesi | B36: =B7 -> 0

Sheet P.Inv.
A2: Ditta ABC Srl
A4: PIANO DEGLI INVESTIMENTI
B6: Importo | C6: % d'ammortamento | D6: Anni d'ammortamento | E6: Quota d'ammortamento
A7: PROGETTAZIONE E STUDI
A8: - Progettazioni | B8: 0 | C8: =IF(B8>0,1/D8,"") ->  | D8: 0 | E8: =IF(B8>0,B8*C8,"") -> 
A9: - Direzione dei lavori | C9: =IF(B9>0,1/D9,"") ->  | D9: =IF(B9=0,"",1/C9) ->  | E9: =IF(B9>0,B9*C9,"") -> 
A10: - Studi di fattibilità
A11: - Valutazione impatto ambientale
A12: - Collaudi di legge
A13: - Oneri di concessione edilizia
A14: - Altro
A15: Totale progettazione e studi | B15: =SUM(B8:B14) -> 0 | E15: =SUM(E8:E14) -> 0
A16: SUOLO AZIENDALE
A17: - Sistemazione suolo | C17: =IF(B17>0,1/D17,"") ->  | E17: =IF(B17>0,B17*C17,"") -> 
A18: - Indagini geognostiche | C18: =IF(B18>0,1/D18,"") ->  | E18: =IF(B18>0,B18*C18,"") -> 
A19: Totale suolo aziendale | B19: =SUM(B17:B18) -> 0 | E19: =SUM(E17:E18) -> 0
A20: OPERE MURARIE E ASSIMILABILI
A21: Capannoni e fabbricati industriali
A22: - (singole descrizioni) | B22: 1000000 | C22: =IF(B22>0,1/D22,"") -> 0.2 | D22: 5 | E22: =IF(B22>0,B22*C22,"") -> 200000
A23: - (singole descrizioni) | C23: =IF(B23>0,1/D23,"") ->  | E23: =IF(B23>0,B23*C23,"") -> 
A24: - (singole descrizioni)
A25: - (singole descrizioni)
A26: - (singole descrizioni)
A27: Totale capannoni e fabbricati industriali | B27: =SUM(B21:B26) -> 1000000 | E27: =SUM(E21:E26) -> 200000
A28: Fabbricati civili per uffici e servizi sociali
A29: - (singole descrizioni) | C29: =IF(B29>0,1/D29,"") ->  | E29: =IF(B29>0,B29*C29,"") -> 
A30: - (singole descrizioni) | C30: =IF(B30>0,1/D30,"") ->  | E30: =IF(B30>0,B30*C30,"") -> 
A31: - (singole descrizioni)
A32: - (singole descrizioni)
A33: - (singole descrizioni)
A34: Totale fabbricati civili per uffici e servizi sociali | B34: =SUM(B29:B33) -> 0 | E34: =SUM(E29:E33) -> 0
A35: Impianti generali e relativi allacciamenti alle reti esterne
A36: - Riscaldamento | C36: =IF(B36>0,1/D36,"") ->  | E36: =IF(B36>0,B36*C36,"") -> 
A37: - Condizionamento | C37: =IF(B37>0,1/D37,"") ->  | E37: =IF(B37>0,B37*C37,"") -> 
A38: - Idrico
A39: - Elettrico
A40: - Fognario
A41: - Metano
A42: - Aria compressa
A43: - Telefonico
A44: - Altri impianti generali
A45: Totale impianti generali | B45: =SUM(B36:B44) -> 0 | E45: =SUM(E36:E44) -> 0
A46: Strade, piazzali, recinzioni, ferrovie
A47: - Strade | C47: =IF(B47>0,1/D47,"") ->  | E47: =IF(B47>0,B47*C47,"") -> 
A48: - Piazzali | E48: =IF(B48>0,B48*C48,"") -> 
A49: - Recinzioni
A50: - Allacciamenti ferroviari
A51: - Tettoie
A52: - Cabine metano, elettriche, ecc.
A53: - Basamenti per macchinari e impianti
A54: - Altro
A55: Totale strade, piazzali, recinzioni, ferrovie, ecc. | B55: =SUM(B47:B54) -> 0 | E55: =SUM(E47:E54) -> 0
A56: Opere varie
A57: - (singole descrizioni) | C57: =IF(B57>0,1/D57,"") ->  | E57: =IF(B57>0,B57*C57,"") -> 
A58: - (singole descrizioni) | E58: =IF(B58>0,B58*C58,"") -> 
A59: Totale opere varie | B59: =SUM(B57:B58) -> 0 | E59: =SUM(E57:E58) -> 0
A60: Totale opere murarie e assimilabili | B60: =B15+B19+B27+B34+B45+B55+B59 -> 1000000 | E60: =SUM(E58:E59) -> 0
A62: MACCHINARI, IMPIANTI SPECIFICI E ATTREZZATURE
A63: Macchinari (descrizione dei singoli macchinari)
A64: Impastatrice | B64: 0 | C64: =IF(B64>0,1/D64,"") ->  | E64: =IF(B64>0,B64*C64,"") -> 
A65: forno | B65: 0 | E65: =IF(B65>0,B65*C65,"") -> 
A66: Banco frigo | B66: 0
A67: - (singole descrizioni) | B67: 0
A68: - (singole descrizioni) | B68: 0
A69: Totale macchinari | B69: =SUM(B64:B68) -> 0 | E69: =SUM(E64:E68) -> 0
A70: Impianti (descrizione dei singoli impianti produttivi e ausiliari)
A71: - (singole descrizioni) | C71: =IF(B71>0,1/D71,"") ->  | E71: =IF(B71>0,B71*C71,"") -> 
A72: - (singole descrizioni) | E72: =IF(B72>0,B72*C72,"") -> 
A73: - (singole descrizioni)
A74: - (singole descrizioni)
A75: - (singole descrizioni)
A76: - (singole descrizioni)
A77: - (singole descrizioni)
A78: Totale impianti | B78: =SUM(B71:B77) -> 0 | E78: =SUM(E71:E77) -> 0
A79: Attrezzature (descrizione compresi mobili e attrez. d'ufficio)
A80: - (singole descrizioni) | C80: =IF(B80>0,1/D80,"") ->  | E80: =IF(B80>0,B80*C80,"") -> 
A81: - (singole descrizioni) | E81: =IF(B81>0,B81*C81,"") -> 
A82: - (singole descrizioni)
A83: - (singole descrizioni)
A84: - (singole descrizioni)
A85: - (singole descrizioni)
A86: - (singole descrizioni)
A87: Totale attrezzature | B87: =SUM(B80:B86) -> 0 | E87: =SUM(E80:E86) -> 0
A88: Software (descrizione del software previsto)
A89: - (singole descrizioni) | C89: =IF(B89>0,1/D89,"") ->  | E89: =IF(B89>0,B89*C89,"") -> 
A90: - (singole descrizioni) | E90: =IF(B90>0,B90*C90,"") -> 
A91: - (singole descrizioni)
A92: - (singole descrizioni)
A93: - (singole descrizioni)
A94: - (singole descrizioni)
A95: - (singole descrizioni)
A96: Brevetti (descrizione)
A97: - (singole descrizioni) | E97: =IF(B97>0,B97*C97,"") -> 
A98: - (singole descrizioni) | E98: =IF(B98>0,B98*C98,"") -> 
A99: Totale software e brevetti | B99: =(SUM(B89:B95)+SUM(B97:B98)) -> 0 | E99: =(SUM(E89:E95)+SUM(E97:E98)) -> 0
A100: Mezzi mobili, autovetture (descrizione)
A101: - (singole descrizioni) | C101: =IF(B101>0,1/D101,"") ->  | E101: =IF(B101>0,B101*C101,"") -> 
A102: - (singole descrizioni) | E102: =IF(B102>0,B102*C102,"") -> 
A103: - (singole descrizioni)
A104: - (singole descrizioni)
A105: Totale mezzi mobili | B105: =SUM(B101:B104) -> 0 | E105: =SUM(E101:E104) -> 0
A106: Totale macchinari impianti e attrezzature | B106: =B69+B78+B87+B99+B105 -> 0 | E106: =E69+E78+E87+E99+E105 -> 0
A107: TOTALE INVESTIMENTO | B107: =B15+B19+B27+B106 -> 1000000 | E107: =E15+E19+E27+E106 -> 200000
A108: SINTESI
B109: Importo | C109: Media % d'ammortamento | D109: Media anni d'ammortamento | E109: Quota d'ammortamento
A110: Totale progettazione e studi | B110: =B15 -> 0 | E110: =E15 -> 0
A111: Totale suolo aziendale | B111: =B19 -> 0 | E111: =E19 -> 0
A112: Totale capannoni e fabbricati industriali | B112: =B27 -> 1000000 | E112: =E27 -> 200000
A113: Totale fabbricati civili per uffici e servizi sociali | B113: =B34 -> 0 | E113: =E34 -> 0
A114: Totale impianti generali | B114: =B45 -> 0 | E114: =E45 -> 0
A115: Totale strade, piazzali, recinzioni, ferrovie, ecc. | B115: =B55 -> 0 | E115: =E55 -> 0
A116: Totale opere varie | B116: =SUM(B114:B115) -> 0 | E116: =SUM(E114:E115) -> 0
A117: Totale opere murarie e assimilabili | B117: =B60 -> 1000000 | E117: =E60 -> 0
A118: Totale macchinari | B118: =B69 -> 0 | E118: =E69 -> 0
A119: Totale impianti | B119: =B78 -> 0 | E119: =E78 -> 0
A120: Totale attrezzature | B120: =B87 -> 0 | E120: =E87 -> 0
A121: Totale software e brevetti | B121: =B99 -> 0 | E121: =E99 -> 0
A122: Totale mezzi mobili | B122: =B105 -> 0 | E122: =E105 -> 0
A123: Totale macchinari impianti e attrezzature | B123: =B106 -> 0 | E123: =E106 -> 0
A124: TOTALE INVESTIMENTO | B124: =B107 -> 1000000 | E124: =E107 -> 200000

Sheet Helpsheet (hidden)
A1: Cos'è il calcolo del punto di pareggio | B1: Cos'è il calcolo del punto di pareggio Una fra le analisi che si eseguono con maggiore frequenza in azienda per determinare l’andamento dei costi e dei ricavi correlati ad una determinata iniziativa commerciale è quella cosiddetta del punto di pareggio (BEP, nel gergo degli addetti ai lavori e acronimo di Break Even Point).
A2: Cosa consente di conoscere | B2: Cosa consente di conoscere In pratica la suddetta analisi, noti alcuni parametri economici del progetto (costi fissi, costi variabili e ricavi presunti) consente di determinare i volumi di vendita da realizzare prima di poter conseguire un profitto. I responsabili dell’iniziativa possono così ottenere preziose informazioni che si rivelano molto utili per gestirla vantaggiosamente.
A3: Un semplice esempio pratico: i costi fissi | B3: Un semplice esempio pratico: i costi fissi Immaginiamo di voler lanciare un nuovo dentifricio. L'azienda sopporterà sicuramente alcuni costi fissi, che sono indipendenti dal numero di pezzi prodotti (costo degli impianti, della ricerca e sviluppo, delle assicurazioni e così via).
A4: Un semplice esempio pratico: i costi variabili | B4: Un semplice esempio pratico: i costi variabili L'azienda avrà anche dei costi, cosiddetti variabili, rappresentati dai materiali, dalla mano d’opera, dagli imballaggi e via dicendo, che sono invece proporzionali ai pezzi prodotti.
A5: Un semplice esempio pratico: il margine di contribuzione | B5: Un semplice esempio pratico: il margine di contribuzione La differenza fra il prezzo di vendita del prodotto e i costi variabili unitari (relativi, cioè, a un singolo pezzo) rappresenta quello che viene definito il margine di contribuzione del prodotto stesso, vale a dire il profitto che si ricava dalla vendita di un singolo pezzo.
A6: Un semplice esempio pratico: assorbimento dei costi fissi | B6: Un semplice esempio pratico: assorbimento dei costi fissi A questo punto è chiaro che i primi quantitativi venduti non portano a un reale guadagno perché il margine di contribuzione realizzato deve prima assorbire i costi fissi del progetto. Quando, finalmente, questi costi vengono azzerati, si comincia a guadagnare.
A7: Un semplice esempio pratico: il punto di pareggio | B7: Un semplice esempio pratico: il punto di pareggio Il numero di pezzi necessario per realizzare tale equilibrio viene definito, pertanto, punto di pareggio.
A8: Il dato è denso di implicazioni pratiche | B8: Il dato è denso di implicazioni pratiche Innanzitutto, si possono eseguire stime sui volumi di vendita da realizzare per conseguire determinati obiettivi finanziari (e in quali tempi). Sarà più facile intuire tattiche e strategie per ottimizzare i risultati dell’iniziativa.
A9: Per utilizzare il file | B9: Per utilizzare il file 1. decidete se volete calcolare il Punto di Pareggio espresso in QUANTITA' da produrre o in FATTURATO da raggiungere e cliccate sul pulsante relativo. 2. passate il cursore del mouse sopra le celle che presentano un puntino rosso ("commenti") e seguite i consigli.
A10: Nel nostro caso del dentifricio… | B10: Nel nostro caso del dentifricio… Così, ritornando ai nostri dentifrici, i costi fissi del progetto sono, poniamo, di 200.000,00 euro, i costi variabili unitari di 0,75 euro e il prezzo di vendita è stato fissato in 1,45 euro, il punto di pareggio è pari a: Q = 200.000,00 / (1,45 - 0,75) = 200.000,00 / 0,70 Vale a dire uguale a 285.714 pezzi In pratica, se i costi variabili vengono “esplosi” dettagliatamente, è possibile valutare in tempo reale quale impatto ha sul punto di pareggio la modifica, poniamo, della confezione o, ancora, una miglioria a livello di materie prime, un ritocco a livello di formula, e così via, potendo, così, testare le più disparate tattiche e strategie di product management.
A11: Dal calcolo del BEP si possono trarre le seguenti osservazioni | B11: Dal calcolo del BEP si possono trarre le seguenti osservazioni a) un’azienda che interrompe temporaneamente la sua attività (per scioperi, per serrate, per mancanza di ordinazioni) sostiene sempre dei costi, corrispondenti ai costi fissi; b) per coprire i costi è necessario svolgere un volume di attività pari a quello indicato dal punto di equilibrio; solo con un volume superiore al punto di equilibrio si realizza un utile; c) le aziende che hanno elevati costi fissi presentano un punto di equilibrio molto alto; le aziende che hanno modesti costi fissi presentano un punto di equilibrio più basso (al limite, in un’ipotetica azienda completamente priva di costi fissi, l’area di utile inizia subito dopo l’origine, anche in presenza di un bassissimo volume di attività).
A12: Limiti dell'analisi BEP | B12: Limiti dell'analisi BEP L'analisi poggia su alcune ipotesi semplificatrici della realtà aziendale, ignorando le quali si corre il rischio di prendere delle decisioni sbagliate. Le ipotesi semplificatrici in questione sono principalmente 4: 1) il volume di produzione viene supposto uguale al volume delle vendite; 2) si presume che i costi variabili siano proporzionali; 3) viene ipotizzata la costanza dei costi fissi nonostante il variare della quantità complessivamente prodotta; 4) si suppone fisso il prezzo di vendita unitario.
A13: Per saperne di più: l' equazione di partenza | B13: Per saperne di più: l' equazione di partenza Poiché al punto di pareggio i ricavi uguagliano i costi dell’intera operazione vale la relazione: (Q x cv) + CF = Q * p Dove: Q è il volume di pareggio; cv i costi variabili unitari; CF i costi fissi del progetto; p il prezzo unitario di vendita.
A14: Per saperne di più: lo sviluppo della equazione | B14: Per saperne di più: lo sviluppo della equazione L’uguaglianza può essere trasformata mettendo in evidenza il volume di pareggio Q: Q x p - Q x cv - CF = 0 Q(p - cv) - CF = 0 CF = Q(p - cv) Ciò esprime molto bene il concetto che all’equilibrio il margine di contribuzione equivale esattamente ai costi fissi, pertanto, ogni pezzo venduto in più sarà in grado di portare profitto. A questo punto, risolvendo l’uguaglianza rispetto a Q si ottiene la formula definitiva che, noti i costi fissi, i costi variabili, e il prezzo unitario di vendita ci dice quanti pezzi corrispondono al punto di pareggio. Q = CF / (p - cv)
A15: Il BEP espresso in termini di fatturato | B15: Il BEP espresso in termini di fatturato Il punto di pareggio può essere espresso in funzione del fatturato da raggiungere anziché, come abbiamo visto finora, in funzione delle quantità da produrre. Partendo dalla equazione vista sopra (Q x cv) + CF = Q * p e moltiplicando entrambi i membri per il prezzo unitario p, si ottiene: Q * p = CF * p / (p - cv) che corrisponde anche a: Ricavi di equilibrio = CF / ( p/p - cv/p ) = CF / 1 - mdc% dove mdc% (margine di contribuzione percentuale) è il rapporto fra il costo variabile unitario ed il prezzo di vendita unitario.
A16: Una nota su questa applicazione | B16: Una nota su questa applicazione Questa applicazione è stata sviluppata da Paolo Battaglia dello Studio Battaglia - Ragusa. Per ulteriori informazioni e per il downolad di altri file utili alla crescita della tua impresa visita il sito: www.crescitapmi.it .: Studio Battaglia - Ragusa :. ® 2005 - Tutti i diritti sono riservati.
